fUST/lending_fUST_20240710
["ID","MTS","AMOUNT","RATE_DAILY","PERIOD"]
[331588451,1720564240914,-859.0554184,0.00027397,2]
[331588452,1720564240924,-859.0554184,0.00027397,2]
[331588453,1720564240933,-859.0554184,0.00027397,2]
[331588454,1720564240944,-859.0554184,0.00027397,2]
[331588455,1720564240955,-859.0554184,0.00027397,2]
[331588456,1720564240968,-859.0554184,0.00027397,2]
[331588457,1720564240977,-859.0554184,0.00027397,2]
[331588458,1720564240987,-859.0554184,0.00027397,2]
[331588459,1720564240997,-851.76878761,0.00027397,2]
[331588460,1720564241007,-851.76878761,0.00027397,2]
[331588461,1720564241016,-851.76878761,0.00027397,2]
[331588462,1720564241027,-851.76878761,0.00027397,2]
[331588463,1720564241037,-851.76878761,0.00027397,2]
[331588464,1720564241046,-851.76878761,0.00027397,2]
[331588465,1720564241056,-851.76878761,0.00027397,2]
[331588466,1720564241067,-851.76878761,0.00027397,2]
[331588467,1720564241076,-851.76878761,0.00027397,2]
[331588468,1720564241086,-851.76878761,0.00027397,2]
[331588469,1720564241095,-851.76878761,0.00027397,2]
[331588470,1720564241105,-851.76878761,0.00027397,2]
[331588471,1720564241114,-851.76878761,0.00027397,2]
[331588472,1720564241124,-851.76878761,0.00027397,2]
[331588473,1720564241133,-851.76878761,0.00027397,2]
[331588474,1720564241143,-851.76878761,0.00027397,2]
[331588475,1720564241153,-851.76878761,0.00027397,2]
[331588476,1720564241162,-851.76878761,0.00027397,2]
[331588477,1720564241172,-851.76878761,0.00027397,2]
[331588478,1720564241182,-851.76878761,0.00027397,2]
[331588479,1720564241192,-851.76878761,0.00027397,2]
[331588480,1720564241202,-851.76878761,0.00027397,2]
[331588481,1720564241212,-851.76878761,0.00027397,2]
[331588482,1720564241222,-851.76878761,0.00027397,2]
[331588483,1720564241231,-869.29489437,0.00027397,2]
[331588484,1720564241240,-869.29489437,0.00027397,2]
[331588485,1720564241253,-869.29489437,0.00027397,2]
[331588486,1720564241262,-869.29489437,0.00027397,2]
[331588487,1720564241272,-869.29489437,0.00027397,2]
[331588488,1720564241281,-869.29489437,0.00027397,2]
[331588489,1720564241291,-869.29489437,0.00027397,2]
[331588490,1720564241300,-869.29489437,0.00027397,2]
[331588491,1720564241309,-869.29489434,0.00027397,2]
[331588492,1720564241318,-2167.411135,0.00027397,7]
[331588493,1720564241328,-2167.411135,0.00027397,7]
[331588494,1720564241338,-2167.411135,0.00027397,7]
[331588495,1720564241347,-2167.411135,0.00027397,7]
[331588496,1720564241356,-2167.411135,0.00027397,7]
[331588497,1720564241366,-2167.411135,0.00027397,7]
[331588498,1720564241376,-151.0,0.00027397,7]
[331588499,1720564241385,-151.0,0.00027397,7]
[331588500,1720564241395,-211.677483,0.00027397,7]
[331588501,1720564241404,-278.488194,0.00027397,7]
[331588502,1720564241414,-278.488194,0.00027397,7]
[331588503,1720564241424,-278.488194,0.00027397,7]
[331588504,1720564241434,-278.488194,0.00027397,7]
[331588505,1720564241443,-278.488194,0.00027397,7]
[331588506,1720564241453,-278.488194,0.00027397,7]
[331588507,1720564241466,-278.488194,0.00027397,7]
[331588508,1720564241475,-151.0,0.00027397,7]
[331588509,1720564241486,-203.653677,0.00027397,7]
[331588510,1720564241495,-151.0,0.00027397,7]
[331588511,1720564241505,-157.100147,0.00027397,7]
[331588512,1720564241515,-191.0559141,0.00027397,120]
[331588513,1720564241524,-157.285723,0.00027397,7]
[331588514,1720564241533,-151.0,0.00027397,7]
[331588515,1720564241543,-151.0,0.00027397,7]
[331588516,1720564241552,-152.078749,0.00027397,7]
[331588517,1720564241563,-151.0,0.00027397,7]
[331588518,1720564241572,-151.0,0.00027397,7]
[331588519,1720564241581,-151.0,0.00027397,7]
[331588520,1720564241590,-153.478367,0.00027397,7]
[331588521,1720564241600,-156.363674,0.00027397,7]
[331588522,1720564241610,-151.0,0.00027397,7]
[331588523,1720564241619,-151.0,0.00027397,7]
[331588524,1720564241629,-151.0,0.00027397,7]
[331588525,1720564241638,-151.0,0.00027397,7]
[331588526,1720564241649,-154.495237,0.00027397,7]
[331588527,1720564241659,-1899.381138,0.00027397,7]
[331588528,1720564241669,-1899.381138,0.00027397,7]
[331588529,1720564241735,-1899.381138,0.00027397,7]
[331588530,1720564241746,-1899.381138,0.00027397,7]
[331588531,1720564241756,-1899.381138,0.00027397,7]
[331588532,1720564241765,-1899.381138,0.00027397,7]
[331588533,1720564241775,-1899.381138,0.00027397,7]
[331588534,1720564241784,-1899.381138,0.00027397,7]
[331588535,1720564241794,-1899.381138,0.00027397,7]
[331588536,1720564241804,-1899.381138,0.00027397,7]
[331588537,1720564241813,-1899.381138,0.00027397,7]
[331588538,1720564241823,-1899.381138,0.00027397,7]
[331588539,1720564241832,-1899.381138,0.00027397,7]
[331588540,1720564241841,-1899.381138,0.00027397,7]
[331588541,1720564241851,-1899.381138,0.00027397,7]
[331588542,1720564241860,-1899.381138,0.00027397,7]
[331588543,1720564241870,-1899.381138,0.00027397,7]
[331588544,1720564241879,-1899.381138,0.00027397,7]
[331588545,1720564241889,-151.0,0.00027397,7]
[331588546,1720564241898,-151.0,0.00027397,7]
[331588547,1720564241908,-151.0,0.00027397,7]
[331588548,1720564241916,-279.448186,0.00027397,7]
[331588549,1720564241925,-267.905858,0.00027397,7]
[331588550,1720564241935,-267.905858,0.00027397,7]
[331588551,1720564241944,-267.905858,0.00027397,7]
[331588552,1720564241954,-267.905858,0.00027397,7]
[331588553,1720564241965,-267.905858,0.00027397,7]
[331588554,1720564241974,-267.905858,0.00027397,7]
[331588555,1720564241984,-267.905858,0.00027397,7]
[331588556,1720564241994,-267.905858,0.00027397,7]
[331588557,1720564242003,-267.905858,0.00027397,7]
[331588558,1720564242012,-267.905858,0.00027397,7]
[331588559,1720564242022,-267.905858,0.00027397,7]
[331588560,1720564242032,-267.905858,0.00027397,7]
[331588561,1720564242041,-267.905858,0.00027397,7]
[331588562,1720564242051,-267.905858,0.00027397,7]
[331588563,1720564242061,-267.905858,0.00027397,7]
[331588564,1720564242070,-267.905858,0.00027397,7]
[331588565,1720564242079,-267.905858,0.00027397,7]
[331588566,1720564242089,-267.905858,0.00027397,7]
[331588567,1720564242098,-151.0,0.00027397,7]
[331588568,1720564242108,-151.0,0.00027397,7]
[331588569,1720564242117,-151.0,0.00027397,7]
[331588570,1720564242127,-871.857878,0.00027397,7]
[331588571,1720564242136,-871.857878,0.00027397,7]
[331588572,1720564242145,-871.857878,0.00027397,7]
[331588573,1720564242155,-871.857878,0.00027397,7]
[331588574,1720564242164,-871.857878,0.00027397,7]
[331588575,1720564242174,-871.857878,0.00027397,7]
[331588576,1720564242185,-871.857878,0.00027397,7]
[331588577,1720564242196,-871.857878,0.00027397,7]
[331588578,1720564242206,-871.857878,0.00027397,7]
[331588579,1720564242219,-871.857878,0.00027397,7]
[331588580,1720564242228,-871.857878,0.00027397,7]
[331588581,1720564242237,-871.857878,0.00027397,7]
[331588582,1720564242248,-871.857878,0.00027397,7]
[331588583,1720564242258,-871.857878,0.00027397,7]
[331588584,1720564242267,-871.857878,0.00027397,7]
[331588585,1720564242276,-871.857878,0.00027397,7]
[331588586,1720564242286,-871.857878,0.00027397,7]
[331588587,1720564242296,-871.857878,0.00027397,7]
[331588588,1720564242306,-871.857878,0.00027397,7]
[331588589,1720564242316,-871.857884,0.00027397,7]
[331588590,1720564242325,-811.705217,0.00027397,7]
[331588591,1720564242335,-811.705217,0.00027397,7]
[331588592,1720564242344,-811.705217,0.00027397,7]
[331588593,1720564242354,-811.705217,0.00027397,7]
[331588594,1720564242363,-811.705217,0.00027397,7]
[331588595,1720564242373,-811.705217,0.00027397,7]
[331588596,1720564242383,-811.705217,0.00027397,7]
[331588597,1720564242392,-811.705217,0.00027397,7]
[331588598,1720564242401,-811.705217,0.00027397,7]
[331588599,1720564242410,-811.705217,0.00027397,7]
[331588600,1720564242419,-811.705217,0.00027397,7]
[331588601,1720564242429,-811.705217,0.00027397,7]
[331588602,1720564242439,-811.705217,0.00027397,7]
[331588603,1720564242448,-811.705217,0.00027397,7]
[331588604,1720564242457,-811.705217,0.00027397,7]
[331588605,1720564242468,-811.705217,0.00027397,7]
[331588606,1720564242476,-811.705217,0.00027397,7]
[331588607,1720564242485,-811.705217,0.00027397,7]
[331588608,1720564242495,-811.705217,0.00027397,7]
[331588609,1720564242504,-811.70521,0.00027397,7]
[331588610,1720564242513,-151.0,0.00027397,7]
[331588611,1720564242522,-151.0,0.00027397,7]
[331588612,1720564242531,-151.0,0.00027397,7]
[331588613,1720564242541,-151.0,0.00027397,7]
[331588614,1720564242550,-151.0,0.00027397,7]
[331588615,1720564242559,-151.0,0.00027397,7]
[331588616,1720564242569,-151.0,0.00027397,7]
[331588617,1720564242578,-151.0,0.00027397,7]
[331588618,1720564242588,-151.0,0.00027397,7]
[331588619,1720564242598,-151.0,0.00027397,7]
[331588620,1720564242608,-151.0,0.00027397,7]
[331588621,1720564242618,-151.0,0.00027397,7]
[331588622,1720564242627,-151.0,0.00027397,7]
[331588623,1720564242638,-151.0,0.00027397,7]
[331588624,1720564242647,-151.0,0.00027397,7]
[331588625,1720564242657,-151.0,0.00027397,7]
[331588626,1720564242667,-151.0,0.00027397,7]
[331588627,1720564242726,-227.217301,0.00027397,7]
[331588628,1720564242735,-262.355966,0.00027397,7]
[331588629,1720564242745,-262.355966,0.00027397,7]
[331588630,1720564242754,-262.355966,0.00027397,7]
[331588631,1720564242763,-262.355966,0.00027397,7]
[331588632,1720564242773,-262.355966,0.00027397,7]
[331588633,1720564242783,-262.355966,0.00027397,7]
[331588634,1720564242792,-262.355966,0.00027397,7]
[331588635,1720564242802,-262.355966,0.00027397,7]
[331588636,1720564242812,-262.355966,0.00027397,7]
[331588637,1720564242821,-262.355966,0.00027397,7]
[331588638,1720564242831,-262.355966,0.00027397,7]
[331588639,1720564242841,-262.355966,0.00027397,7]
[331588640,1720564242851,-262.355966,0.00027397,7]
[331588641,1720564242860,-262.355966,0.00027397,7]
[331588642,1720564242870,-262.355966,0.00027397,7]
[331588643,1720564242881,-262.355966,0.00027397,7]
[331588644,1720564242891,-262.355966,0.00027397,7]
[331588645,1720564242900,-262.355966,0.00027397,7]
[331588646,1720564242910,-262.355966,0.00027397,7]
[331588647,1720564242920,-262.355972,0.00027397,7]
[331588648,1720564242931,-365.883066,0.00027397,7]
[331588649,1720564242940,-365.883066,0.00027397,7]
[331588650,1720564242949,-365.883066,0.00027397,7]
[331588651,1720564242959,-365.883066,0.00027397,7]
[331588652,1720564242968,-365.883066,0.00027397,7]
[331588653,1720564242979,-365.883066,0.00027397,7]
[331588654,1720564242988,-365.883066,0.00027397,7]
[331588655,1720564242997,-365.883066,0.00027397,7]
[331588656,1720564243008,-365.883066,0.00027397,7]
[331588657,1720564243018,-365.883066,0.00027397,7]
[331588658,1720564243027,-365.883066,0.00027397,7]
[331588659,1720564243038,-365.883066,0.00027397,7]
[331588660,1720564243048,-365.883066,0.00027397,7]
[331588661,1720564243058,-365.883066,0.00027397,7]
[331588662,1720564243067,-365.883066,0.00027397,7]
[331588663,1720564243078,-365.883066,0.00027397,7]
[331588665,1720564243088,-365.883066,0.00027397,7]
[331588667,1720564243097,-365.883066,0.00027397,7]
[331588668,1720564243107,-365.883066,0.00027397,7]
[331588670,1720564243115,-365.88307,0.00027397,7]
[331588672,1720564243125,-332.258929,0.00027397,2]
[331588673,1720564243137,-332.258929,0.00027397,2]
[331588674,1720564243146,-332.258929,0.00027397,2]
[331588675,1720564243155,-151.0,0.00027397,7]
[331588676,1720564243164,-332.258929,0.00027397,2]
[331588677,1720564243172,-156.524891,0.00027397,7]
[331588678,1720564243183,-332.258929,0.00027397,2]
[331588679,1720564243192,-332.258929,0.00027397,2]
[331588680,1720564243203,-332.258929,0.00027397,2]
[331588681,1720564243212,-332.258929,0.00027397,2]
[331588682,1720564243221,-332.258929,0.00027397,2]
[331588684,1720564243230,-332.258929,0.00027397,2]
[331588686,1720564243239,-332.258929,0.00027397,2]
[331588687,1720564243248,-332.258929,0.00027397,2]
[331588688,1720564243256,-332.258929,0.00027397,2]
[331588690,1720564243265,-332.258929,0.00027397,2]
[331588692,1720564243274,-332.258929,0.00027397,2]
[331588694,1720564243283,-332.258929,0.00027397,2]
[331588695,1720564243292,-332.258929,0.00027397,2]
[331588696,1720564243300,-332.258929,0.00027397,2]
[331588697,1720564243309,-332.258929,0.00027397,2]
[331588698,1720564243318,-332.258936,0.00027397,2]
[331588699,1720564243327,-151.0,0.00027397,7]
[331588700,1720564243336,-151.0,0.00027397,7]
[331588701,1720564243345,-151.0,0.00027397,7]
[331588702,1720564243354,-151.0,0.00027397,7]
[331588704,1720564243363,-151.0,0.00027397,7]
[331588705,1720564243372,-151.0,0.00027397,7]
[331588706,1720564243381,-151.0,0.00027397,7]
[331588707,1720564243390,-151.0,0.00027397,7]
[331588708,1720564243398,-151.0,0.00027397,7]
[331588709,1720564243410,-151.0,0.00027397,7]
[331588710,1720564243419,-151.0,0.00027397,7]
[331588711,1720564243428,-151.0,0.00027397,7]
[331588712,1720564243437,-151.0,0.00027397,7]
[331588713,1720564243446,-381.192338,0.00027397,7]
[331588714,1720564243455,-151.0,0.00027397,7]
[331588715,1720564243465,-381.192338,0.00027397,7]
[331588716,1720564243474,-151.0,0.00027397,7]
[331588717,1720564243483,-381.192338,0.00027397,7]
[331588718,1720564243492,-171.215581,0.00027397,7]
[331588719,1720564243501,-381.192338,0.00027397,7]
[331588720,1720564243510,-381.192338,0.00027397,7]
[331588721,1720564243519,-381.192338,0.00027397,7]
[331588722,1720564243528,-381.192338,0.00027397,7]
[331588723,1720564243537,-381.192338,0.00027397,7]
[331588724,1720564243546,-381.192338,0.00027397,7]
[331588725,1720564243555,-381.192338,0.00027397,7]
[331588726,1720564243564,-381.192338,0.00027397,7]
[331588727,1720564243621,-381.192338,0.00027397,7]
[331588728,1720564243630,-381.192338,0.00027397,7]
[331588729,1720564243639,-381.192338,0.00027397,7]
[331588730,1720564243648,-381.192338,0.00027397,7]
[331588731,1720564243657,-381.192338,0.00027397,7]
[331588732,1720564243666,-381.192338,0.00027397,7]
[331588733,1720564243675,-381.192338,0.00027397,7]
[331588734,1720564243684,-381.192338,0.00027397,7]
[331588735,1720564243694,-381.192332,0.00027397,7]
[331588736,1720564243703,-553.664571,0.00027397,7]
[331588737,1720564243713,-553.664571,0.00027397,7]
[331588738,1720564243722,-553.664571,0.00027397,7]
[331588739,1720564243732,-553.664571,0.00027397,7]
[331588740,1720564243741,-553.664571,0.00027397,7]
[331588741,1720564243751,-553.664571,0.00027397,7]
[331588742,1720564243760,-553.664571,0.00027397,7]
[331588743,1720564243769,-553.664571,0.00027397,7]
[331588744,1720564243778,-553.664571,0.00027397,7]
[331588745,1720564243787,-553.664571,0.00027397,7]
[331588746,1720564243796,-553.664571,0.00027397,7]
[331588747,1720564243806,-553.664571,0.00027397,7]
[331588748,1720564243815,-553.664571,0.00027397,7]
[331588749,1720564243824,-553.664571,0.00027397,7]
[331588750,1720564243833,-553.664571,0.00027397,7]
[331588751,1720564243842,-553.664571,0.00027397,7]
[331588752,1720564243851,-553.664571,0.00027397,7]
[331588753,1720564243860,-553.664571,0.00027397,7]
[331588754,1720564243869,-279.12790183,0.00027397,7]
[331588755,1720564243879,-278.488185,0.00027399,7]
[331588756,1720564243888,-154.60575532,0.00027399,2]
[331588757,1720564243897,-175.37288532,0.000274,2]
[331588758,1720564243906,-257.6,0.00027485,2]
[331588759,1720564243916,-150.0,0.00027489,2]
[331588760,1720564243925,-43657.05388,0.000275,2]
[331588761,1720564243934,-1899.381138,0.000275,7]
[331588762,1720564243943,-1899.381138,0.000275,7]
[331588763,1720564243952,-267.905858,0.000275,7]
[331588764,1720564243961,-267.90586,0.000275,7]
[331588765,1720564243971,-553.664571,0.000275,7]
[331588766,1720564243981,-553.66456123,0.000275,7]
[331588767,1720564243990,-2167.411135,0.000275,7]
[331588768,1720564243999,-2167.411135,0.000275,7]
[331588769,1720564244008,-1050.0,0.00027715,2]
[331588770,1720564244017,-550.0,0.00027796,2]
[331588771,1720564244026,-1328.65900423,0.000279,2]
[331588772,1720564244035,-25158.86869203,0.0002799,2]
[331588773,1720564244044,-1065.65690458,0.00027999,2]
[331588774,1720564244052,-172.42394717,0.00028,30]
[331588775,1720564244061,-1000.0,0.00028,28]
[331588776,1720564244070,-268.60335139,0.00028,2]
[331588777,1720564244079,-383.19171264,0.00028,3]
[331588778,1720564244088,-233.028,0.00028031,2]
[331588779,1720564244097,-164.371,0.00028031,2]
[331588780,1720564244106,-250.0,0.00028031,2]
[331588781,1720564244115,-1150.0,0.00028263,2]
[331588782,1720564244123,-445.6943783,0.00028319,2]
[331588783,1720564244133,-301.73972618,0.00028344,2]
[331588784,1720564244142,-153.0,0.00028422,2]
[331588785,1720564244152,-202.4967339,0.00028422,2]
[331588786,1720564244161,-153.0,0.00028422,2]
[331588787,1720564244170,-153.0,0.00028422,2]
[331588788,1720564244180,-306.0,0.00028422,2]
[331588789,1720564244191,-153.0,0.00028423,2]
[331588790,1720564244202,-153.0,0.00028423,2]
[331588791,1720564244211,-153.0,0.00028423,2]
[331588792,1720564244220,-153.0,0.00028423,2]
[331588793,1720564244230,-153.0,0.00028423,2]
[331588794,1720564244239,-150.0,0.00028489,2]
[331588795,1720564244248,-798.33156433,0.000285,2]
[331588796,1720564244258,-189961.79213932,0.0002877,2]
[331588797,1720564244267,-1250.0,0.00028811,2]
[331588798,1720564244277,-306.0,0.0002893,2]
[331588799,1720564244286,-1000.0,0.00029,29]
[331588800,1720564244296,-500.0,0.00029,3]
[331588801,1720564244305,-849.30884963,0.00029,2]
[331588802,1720564244314,-257.6,0.00029066,3]
[331588803,1720564244324,-153.0,0.00029244,2]
[331588804,1720564244333,-153.0,0.00029244,2]
[331588805,1720564244343,-153.0,0.00029244,2]
[331588806,1720564244352,-153.0,0.00029244,2]
[331588807,1720564244361,-306.0,0.00029244,2]
[331588808,1720564244370,-180.18561247,0.00029359,2]
[331588809,1720564244379,-150.0,0.00029489,2]
[331588810,1720564244434,-248.18592096,0.000298,120]
[331588811,1720564244443,-153.0,0.00029836,2]
[331588812,1720564244453,-34947.26192643,0.00029879,2]
[331588813,1720564244462,-471.62828703,0.0003,4]
[331588814,1720564244471,-643.5565645,0.0003,4]
[331588815,1720564244480,-170.45207762,0.0003,4]
[331588816,1720564244489,-154.65203293,0.0003,4]
[331588817,1720564244499,-500.0,0.0003,3]
[331588818,1720564244510,-752.61886642,0.0003,2]
[331588819,1720564244519,-304.22675637,0.0003,30]
[331588820,1720564244529,-1000.0,0.0003,30]
[331588821,1720564244539,-218.0,0.0003,2]
[331588822,1720564244548,-150.0,0.00030211,2]
[331588823,1720564244557,-351.0,0.00030211,2]
[331588824,1720564244566,-1405.0,0.00030211,2]
[331588825,1720564244576,-150.0,0.00030489,2]
[331588826,1720564244585,-153.0,0.00030493,2]
[331588827,1720564244594,-257.6,0.00030646,3]
[331588828,1720564244603,-153.0,0.00030654,2]
[331588829,1720564244613,-153.0,0.00030654,2]
[331588830,1720564244622,-153.0,0.00030654,2]
[331588831,1720564244631,-153.0,0.00030654,2]
[331588832,1720564244640,-153.0,0.00030654,2]
[331588833,1720564244649,-153.0,0.00030654,2]
[331588834,1720564244658,-153.0,0.00030654,2]
[331588835,1720564244667,-153.0,0.00030654,2]
[331588836,1720564244676,-153.0,0.00030654,2]
[331588837,1720564244685,-153.0,0.00030654,2]
[331588838,1720564244694,-153.0,0.00030654,2]
[331588839,1720564244703,-500.0,0.00031,3]
[331588840,1720564244713,-150.0,0.00031031,2]
[331588841,1720564244722,-150.0,0.00031031,2]
[331588842,1720564244731,-153.0,0.00031233,2]
[331588843,1720564244740,-153.0,0.00031398,2]
[331588844,1720564244753,-222916.94500332,0.000318,2]
[331588845,1720564244762,-500.0,0.00032,3]
[331588846,1720564244771,-500.30375304,0.00032,30]
[331588847,1720564244780,-1000.0,0.00032,32]
[331588848,1720564244798,-257.6,0.00032226,4]
[331588849,1720564244816,-153.0,0.00032294,2]
[331588850,1720564244834,-153.0,0.00032294,2]
[331588851,1720564244853,-153.0,0.00032294,2]
[331588852,1720564244874,-153.0,0.00032294,2]
[331588853,1720564244891,-153.0,0.00032294,2]
[331588854,1720564244909,-153.0,0.00032294,2]
[331588855,1720564244923,-153.0,0.00032294,2]
[331588856,1720564244939,-153.0,0.00032294,2]
[331588857,1720564244956,-153.0,0.00032294,2]
[331588858,1720564244973,-153.0,0.00032294,2]
[331588859,1720564244989,-153.0,0.00032294,2]
[331588860,1720564245002,-153.0,0.00032294,2]
[331588861,1720564245019,-153.0,0.00032294,2]
[331588862,1720564245032,-695.48082098,0.000325,60]
[331588863,1720564245047,-150.0,0.00032877,2]
[331588864,1720564245060,-153.0,0.00032989,2]
[331588865,1720564245075,-1000.0,0.00033,33]
[331588866,1720564245089,-500.0,0.00033,3]
[331588867,1720564245102,-1709.04180546,0.00033,21]
[331588868,1720564245116,-218.0,0.00033,2]
[331588869,1720564245130,-218.0,0.00033,2]
[331588870,1720564245145,-153.0,0.00033116,2]
[331588871,1720564245159,-150.0,0.00033211,2]
[331588872,1720564245172,-351.0,0.00033211,2]
[331588873,1720564245189,-1405.0,0.00033211,2]
[331588874,1720564245205,-586.864874,0.00033295,2]
[331588875,1720564245220,-42865.51788837,0.00033333,2]
[331588876,1720564245235,-600.0,0.000336,2]
[331588877,1720564245250,-155585.37745614,0.000338,2]
[331588878,1720564245493,-41000.0,0.000338,2]
[331588879,1720564245696,-500.0,0.00016253,2]
[331588880,1720564245705,-453.41068423,0.00023455,2]
[331588881,1720564245715,-175927.37620916,0.000338,2]
[331588882,1720564245724,-118690.50802404,0.000338,2]
[331588895,1720564640738,226.85031544,0.00038472,30]
[331588907,1720564872291,683.0,0.00038386,30]
[331588909,1720564883184,683.0,0.00038386,30]
[331588911,1720564893904,683.0,0.00038386,30]
[331588912,1720564904494,683.0,0.00038386,30]
[331588913,1720564915083,775.0,0.00038386,30]
[331588996,1720565438786,-300.0,0.00016254,2]
[331588997,1720565438796,-300.0,0.00016254,2]
[331588998,1720565438807,-154.60575532,0.00016255,2]
[331588999,1720565438817,-34947.26192643,0.00016255,2]
[331589000,1720565438826,-42248.84590217,0.00016255,2]
[331589001,1720565438836,-1982.49128326,0.000176,2]
[331589002,1720565438846,-420.0,0.00017879,2]
[331589003,1720565438855,-166.666666,0.00018272,2]
[331589004,1720565438865,-166.666666,0.0001877,2]
[331589005,1720565438874,-250.0,0.00019041,2]
[331589006,1720565438884,-162.083833,0.00019178,2]
[331589007,1720565438894,-166.666666,0.00019269,2]
[331589008,1720565438903,-18585.8662224,0.00019536,2]
[331589009,1720565438913,-587.0,0.00019667,2]
[331589010,1720565438923,-166.666666,0.00019767,2]
[331589011,1720565438934,-154.60575532,0.0002,2]
[331589012,1720565438944,-56054.7389403,0.00020255,2]
[331589013,1720565438953,-166.666666,0.00020265,2]
[331589014,1720565438963,-166.666666,0.00020763,2]
[331589015,1720565438973,-320.34430196,0.0002081,10]
[331589016,1720565438982,-268.8956738,0.00021043,2]
[331589017,1720565438992,-626.964693,0.00021096,2]
[331589018,1720565439001,-823.0,0.00021634,2]
[331589019,1720565439011,-1065.65690458,0.00021917,2]
[331589020,1720565439021,-1152.0,0.00023797,2]
[331589021,1720565439031,-3651.86816062,0.00023938,2]
[331589022,1720565439041,-7453.24885483,0.0002401,5]
[331589023,1720565439053,-56054.7389403,0.0002401,3]
[331589024,1720565439063,-168164.216821,0.0002402,3]
[331589025,1720565439072,-56054.7389403,0.0002403,3]
[331589026,1720565439082,-500.0,0.00024037,2]
[331589027,1720565439092,-500.0,0.00024037,2]
[331589028,1720565439102,-500.0,0.00024037,2]
[331589029,1720565439112,-559.19027876,0.00024037,2]
[331589030,1720565439122,-500.0,0.00024037,2]
[331589031,1720565439131,-500.0,0.00024037,2]
[331589032,1720565439141,-500.0,0.00024037,2]
[331589033,1720565439150,-241.43319513,0.00024037,2]
[331589034,1720565439160,-500.0,0.00024037,2]
[331589035,1720565439169,-500.0,0.00024037,2]
[331589036,1720565439179,-525.36726232,0.00024037,2]
[331589037,1720565439188,-130862.81986094,0.0002404,2]
[331589038,1720565439198,-150.0,0.000241,2]
[331589039,1720565439207,-150.0,0.00024529,2]
[331589040,1720565439216,-250.0,0.00024648,2]
[331589041,1720565439226,-150.0,0.0002491,2]
[331589042,1720565439236,-250.0,0.00025077,2]
[331589043,1720565439246,-350.0,0.00025196,2]
[331589044,1720565439256,-250.0,0.00025458,2]
[331589045,1720565439266,-31122.37514457,0.00025501,2]
[331589046,1720565439279,-21013.84538113,0.00025501,2]
[331589047,1720565439290,-30000.0,0.00025501,2]
[331589048,1720565439302,-162.454767,0.0002552,2]
[331589049,1720565439311,-350.0,0.00025624,2]
[331589050,1720565439321,-450.0,0.00025744,2]
[331589051,1720565439330,-236.2,0.00025808,2]
[331589052,1720565439340,-350.0,0.00026006,2]
[331589053,1720565439350,-450.0,0.00026172,2]
[331589054,1720565439360,-600.0,0.00026177,2]
[331589055,1720565439370,-550.0,0.00026292,2]
[331589056,1720565439380,-3651.86816062,0.00026351,2]
[331589057,1720565439390,-150.0,0.000265,2]
[331589058,1720565439400,-450.0,0.00026554,2]
[331589059,1720565439410,-184.31424669,0.0002672,2]
[331589060,1720565439478,-301.73972618,0.0002684,2]
[331589061,1720565439487,-445.6943783,0.00027064,2]
[331589062,1720565439497,-236.2,0.00027098,2]
[331589063,1720565439506,-550.0,0.00027102,2]
[331589064,1720565439516,-626.964693,0.00027195,2]
[331589065,1720565439526,-150.0,0.00027211,2]
[331589066,1720565439536,-358.0,0.00027211,2]
[331589067,1720565439545,-1405.0,0.00027211,2]